fUST/lending_fUST_20251201
["ID","MTS","AMOUNT","RATE_DAILY","PERIOD"]
[395245338,1764565850214,-500.0,0.00011232,2]
[395245340,1764565850225,-1115.12,0.00011232,2]
[395245375,1764565850531,-500.0,0.00011232,2]
[395245379,1764565850557,-661.2,0.00011232,2]
[395245382,1764565850576,-500.0,0.00011232,2]
[395245384,1764565850587,-500.0,0.00011232,2]
[395245386,1764565850596,-448.88328918,0.00011232,2]
[395245389,1764565850606,-642.02,0.00011232,2]
[395245390,1764565850616,-722.06,0.00011232,2]
[395245392,1764565850626,-500.0,0.00011232,2]
[395245393,1764565850635,-539.94,0.00011232,2]
[395245395,1764565850644,-1496.63,0.00011232,2]
[395245397,1764565850653,-500.0,0.00011232,2]
[395245399,1764565850662,-500.0,0.00011232,2]
[395245401,1764565850671,-500.0,0.00011232,2]
[395245403,1764565850680,-2248.43,0.00011232,2]
[395245405,1764565850690,-661.71,0.00011232,2]
[395245407,1764565850699,-14512.94,0.00011232,2]
[395245409,1764565850708,-3216.87,0.00011232,2]
[395245411,1764565850717,-5932.38,0.00011232,2]
[395245413,1764565850726,-4570.98,0.00011232,2]
[395245415,1764565850735,-500.0,0.00011232,2]
[395245417,1764565850744,-500.0,0.00011232,2]
[395245419,1764565850753,-626.14,0.00011232,2]
[395245421,1764565850762,-500.0,0.00011232,2]
[395245423,1764565850772,-152.70805775,0.00011232,2]
[395245460,1764565851103,-347.29194225,0.00011232,2]
[395245462,1764565851114,-2682.85,0.00011232,2]
[395245464,1764565851123,-1159.2,0.00011232,2]
[395245466,1764565851132,-891.56,0.00011232,2]
[395245468,1764565851142,-655.1,0.00011232,2]
[395245470,1764565851151,-618.43,0.00011232,2]
[395245472,1764565851160,-1516.75,0.00011232,2]
[395245474,1764565851169,-543.83,0.00011232,2]
[395245476,1764565851178,-639.94,0.00011232,2]
[395245478,1764565851189,-500.0,0.00011232,2]
[395245480,1764565851200,-500.0,0.00011232,2]
[395245482,1764565851209,-591.87,0.00011232,2]
[395245483,1764565851218,-500.0,0.00011232,2]
[395245485,1764565851227,-563.18100752,0.00011232,2]
[395245487,1764565851238,-500.0,0.00011232,2]
[395245489,1764565851247,-2617.07,0.00011232,2]
[395245491,1764565851256,-500.0,0.00011232,2]
[395245493,1764565851265,-300.0,0.00011283,2]
[395245496,1764565851277,-300.0,0.00011283,2]
[395245498,1764565851286,-300.0,0.00011283,2]
[395245500,1764565851295,-300.0,0.00011283,2]
[395245502,1764565851304,-300.0,0.00011283,2]
[395245504,1764565851313,-300.0,0.00011283,2]
[395245506,1764565851322,-300.0,0.00011283,2]
[395245508,1764565851331,-300.0,0.00011283,2]
[395245510,1764565851340,-300.0,0.00011283,2]
[395245512,1764565851349,-300.0,0.00011283,2]
[395245513,1764565851359,-300.0,0.00011283,2]
[395245516,1764565851368,-300.0,0.00011283,2]
[395245517,1764565851378,-300.0,0.00011283,2]
[395245519,1764565851387,-300.0,0.00011283,2]
[395245522,1764565851396,-300.0,0.00011283,2]
[395245523,1764565851406,-600.0,0.00011283,2]
[395245525,1764565851415,-239.84119403,0.000113,2]
[395245528,1764565851424,-500.0,0.00011369,2]
[395245530,1764565851433,-550.97008061,0.00011369,2]
[395245531,1764565851442,-345.41361763,0.00011369,2]
[395245534,1764565851452,-500.0,0.00011369,2]
[395245536,1764565851461,-1485.0,0.00011369,2]
[395245538,1764565851470,-505.0,0.00011369,2]
[395245539,1764565851479,-246.62793605,0.00011369,2]
[395245541,1764565851488,-246.9389776,0.00011369,2]
[395245543,1764565851498,-324.32467332,0.00011369,2]
[395245545,1764565851507,-306.38084275,0.00011369,2]
[395245547,1764565851516,-1576.01008182,0.00011487,2]
[395245549,1764565851527,-155.62413861,0.00011506,2]
[395245552,1764565851536,-411.64342184,0.00011506,2]
[395245554,1764565851546,-1485.0,0.00011506,2]
[395245555,1764565851555,-505.0,0.00011506,2]
[395245558,1764565851564,-502.05152298,0.00011506,2]
[395245559,1764565851573,-501.73834846,0.00011506,2]
[395245561,1764565851582,-500.0,0.00011506,2]
[395245563,1764565851591,-500.75091251,0.00011506,2]
[395245565,1764565851600,-1640.8,0.00011506,2]
[395245567,1764565851609,-500.0,0.00011506,2]
[395245570,1764565851618,-834.49,0.00011506,2]
[395245571,1764565851628,-500.0,0.00011506,2]
[395245574,1764565851637,-587.03,0.00011506,2]
[395245575,1764565851646,-962.59,0.00011506,2]
[395245578,1764565851656,-500.0,0.00011506,2]
[395245579,1764565851665,-500.0,0.00011506,2]
[395245581,1764565851674,-500.0,0.00011506,2]
[395245583,1764565851683,-500.0,0.00011506,2]
[395245586,1764565851693,-708.59,0.00011506,2]
[395245587,1764565851702,-585.0,0.00011506,2]
[395245589,1764565851712,-580.9,0.00011506,2]
[395245591,1764565851721,-500.0,0.00011506,2]
[395245593,1764565851731,-500.0,0.00011506,2]
[395245596,1764565851740,-593.34,0.00011506,2]
[395245597,1764565851750,-1406.09,0.00011506,2]
[395245599,1764565851759,-500.0,0.00011506,2]
[395245601,1764565851769,-495.78461092,0.00011506,2]
[395245603,1764565851778,-500.0,0.00011506,2]
[395245605,1764565851788,-600.36,0.00011506,2]
[395245607,1764565851797,-821.74,0.00011506,2]
[395245610,1764565851807,-1357.75,0.00011506,2]
[395245611,1764565851816,-500.0,0.00011506,2]
[395245613,1764565851825,-511.01,0.00011506,2]
[395245615,1764565851835,-500.0,0.00011506,2]
[395245617,1764565851844,-500.0,0.00011506,2]
[395245619,1764565851853,-846.91,0.00011506,2]
[395245621,1764565851863,-500.0,0.00011506,2]
[395245623,1764565851873,-500.0,0.00011506,2]
[395245625,1764565851883,-500.0,0.00011506,2]
[395245627,1764565851892,-500.0,0.00011506,2]
[395245629,1764565851902,-500.0,0.00011506,2]
[395245631,1764565851911,-704.49,0.00011506,2]
[395245633,1764565851921,-721.72,0.00011506,2]
[395245635,1764565851931,-500.0,0.00011506,2]
[395245637,1764565851940,-572.01,0.00011506,2]
[395245639,1764565851949,-500.0,0.00011506,2]
[395245641,1764565851959,-500.0,0.00011506,2]
[395245643,1764565851968,-500.0,0.00011506,2]
[395245645,1764565851977,-694.49,0.00011506,2]
[395245647,1764565851987,-860.3,0.00011506,2]
[395245649,1764565851996,-500.0,0.00011506,2]
[395245651,1764565852005,-550.76,0.00011506,2]
[395245653,1764565852014,-500.0,0.00011506,2]
[395245655,1764565852024,-500.0,0.00011506,2]
[395245657,1764565852033,-725.42,0.00011506,2]
[395245660,1764565852042,-500.0,0.00011506,2]
[395245662,1764565852062,-777.08,0.00011506,2]
[395245665,1764565852074,-827.08,0.00011506,2]
[395245667,1764565852083,-635.96,0.00011506,2]
[395245668,1764565852093,-603.6,0.00011506,2]
[395245671,1764565852103,-500.75,0.00011506,2]
[395245673,1764565852116,-1755.69,0.00011506,2]
[395245675,1764565852126,-500.0,0.00011506,2]
[395245677,1764565852135,-258.8793179,0.00011506,2]
[395245679,1764565852145,-500.0,0.00011506,2]
[395245681,1764565852154,-698.57,0.00011506,2]
[395245683,1764565852164,-500.0,0.00011506,2]
[395245685,1764565852174,-641.42,0.00011506,2]
[395245687,1764565852185,-500.0,0.00011506,2]
[395245689,1764565852198,-163.747823,0.00011506,2]
[395245691,1764565852207,-500.0,0.00011506,2]
[395245693,1764565852216,-500.0,0.00011506,2]
[395245695,1764565852227,-1746.89,0.00011506,2]
[395245697,1764565852236,-686.03,0.00011506,2]
[395245699,1764565852246,-500.0,0.00011506,2]
[395245701,1764565852255,-500.0,0.00011506,2]
[395245703,1764565852265,-965.64,0.00011506,2]
[395245705,1764565852274,-500.0,0.00011506,2]
[395245707,1764565852284,-500.0,0.00011506,2]
[395245709,1764565852293,-500.0,0.00011506,2]
[395245711,1764565852302,-500.0,0.00011506,2]
[395245713,1764565852312,-500.0,0.00011506,2]
[395245715,1764565852322,-1149.19794684,0.00011506,2]
[395245717,1764565852337,-674.97205316,0.00011506,2]
[395245719,1764565852346,-500.0,0.00011506,2]
[395245721,1764565852356,-999.02,0.00011506,2]
[395245723,1764565852366,-500.0,0.00011506,2]
[395245725,1764565852376,-500.0,0.00011506,2]
[395245727,1764565852386,-660.29,0.00011506,2]
[395245729,1764565852396,-981.44,0.00011506,2]
[395245731,1764565852407,-500.0,0.00011506,2]
[395245734,1764565852420,-500.0,0.00011506,2]
[395245736,1764565852430,-500.0,0.00011506,2]
[395245738,1764565852441,-662.2,0.00011506,2]
[395245740,1764565852451,-873.02,0.00011506,2]
[395245742,1764565852461,-500.0,0.00011506,2]
[395245744,1764565852471,-486.78004448,0.00011506,2]
[395245746,1764565852481,-146.28626647,0.00011506,2]
[395245748,1764565852493,-353.71373353,0.00011506,2]
[395245750,1764565852504,-942.1,0.00011506,2]
[395245752,1764565852514,-716.86,0.00011506,2]
[395245754,1764565852524,-576.15105251,0.00011506,2]
[395245756,1764565852533,-1282.05,0.00011506,2]
[395245758,1764565852542,-612.7,0.00011506,2]
[395245760,1764565852552,-941.82,0.00011506,2]
[395245762,1764565852561,-2017.44,0.00011506,2]
[395245764,1764565852570,-424.91394108,0.00011506,2]
[395245766,1764565852579,-500.0,0.00011506,2]
[395245768,1764565852589,-615.53,0.00011506,2]
[395245770,1764565852598,-593.97,0.00011506,2]
[395245772,1764565852607,-3084.25,0.00011506,2]
[395245774,1764565852617,-500.0,0.00011506,2]
[395245776,1764565852627,-500.0,0.00011506,2]
[395245778,1764565852637,-610.79,0.00011506,2]
[395245780,1764565852646,-500.0,0.00011506,2]
[395245782,1764565852656,-500.0,0.00011506,2]
[395245784,1764565852666,-500.0,0.00011506,2]
[395245786,1764565852676,-500.0,0.00011506,2]
[395245788,1764565852686,-932.07,0.00011506,2]
[395245790,1764565852695,-736.23,0.00011506,2]
[395245792,1764565852706,-699.06,0.00011506,2]
[395245793,1764565852715,-721.67,0.00011506,2]
[395245794,1764565852725,-160.13620226,0.00011506,2]
[395245795,1764565852734,-500.0,0.00011506,2]
[395245796,1764565852744,-500.0,0.00011506,2]
[395245797,1764565852754,-1341.23,0.00011506,2]
[395245798,1764565852763,-500.0,0.00011506,2]
[395245799,1764565852772,-1668.27,0.00011506,2]
[395245800,1764565852782,-1318.19,0.00011506,2]
[395245801,1764565852792,-500.0,0.00011506,2]
[395245802,1764565852801,-652.81,0.00011506,2]
[395245803,1764565852811,-500.0,0.00011506,2]
[395245804,1764565852820,-847.62,0.00011506,2]
[395245805,1764565852830,-500.0,0.00011506,2]
[395245806,1764565852839,-500.0,0.00011506,2]
[395245807,1764565852848,-500.0,0.00011506,2]
[395245808,1764565852858,-500.0,0.00011506,2]
[395245810,1764565852868,-500.0,0.00011506,2]
[395245811,1764565852879,-500.0,0.00011506,2]
[395245813,1764565852889,-500.0,0.00011506,2]
[395245815,1764565852898,-781.16,0.00011506,2]
[395245817,1764565852909,-778.71,0.00011506,2]
[395245820,1764565852919,-500.0,0.00011506,2]
[395245822,1764565852928,-500.0,0.00011506,2]
[395245823,1764565852938,-704.74,0.00011506,2]
[395245826,1764565852948,-1596.33,0.00011506,2]
[395245828,1764565852958,-531.59,0.00011506,2]
[395245830,1764565852968,-500.0,0.00011506,2]
[395245832,1764565852978,-500.0,0.00011506,2]
[395245834,1764565852987,-1163.47,0.00011506,2]
[395245836,1764565852997,-4426.82,0.00011506,2]
[395245838,1764565853006,-1491.1,0.00011506,2]
[395245840,1764565853016,-500.0,0.00011506,2]
[395245842,1764565853026,-881.88,0.00011506,2]
[395245844,1764565853035,-500.0,0.00011506,2]
[395245846,1764565853045,-720.77,0.00011506,2]
[395245848,1764565853055,-500.0,0.00011506,2]
[395245850,1764565853065,-500.0,0.00011506,2]
[395245852,1764565853075,-507.09432918,0.00011506,2]
[395245854,1764565853089,-1348.38567082,0.00011506,2]
[395245856,1764565853099,-733.63,0.00011506,2]
[395245858,1764565853108,-500.0,0.00011506,2]
[395245860,1764565853118,-500.0,0.00011506,2]
[395245862,1764565853128,-500.0,0.00011506,2]
[395245864,1764565853137,-2825.74,0.00011506,2]
[395245866,1764565853147,-500.0,0.00011506,2]
[395245868,1764565853157,-500.0,0.00011506,2]
[395245870,1764565853166,-500.0,0.00011506,2]
[395245872,1764565853176,-2838.45,0.00011506,2]
[395245874,1764565853189,-500.0,0.00011506,2]
[395245876,1764565853201,-500.0,0.00011506,2]
[395245878,1764565853211,-500.0,0.00011506,2]
[395245880,1764565853222,-632.29,0.00011506,2]
[395245882,1764565853233,-500.0,0.00011506,2]
[395245884,1764565853243,-500.0,0.00011506,2]
[395245886,1764565853253,-500.0,0.00011506,2]
[395245888,1764565853262,-656.74,0.00011506,2]
[395245890,1764565853272,-724.59,0.00011506,2]
[395245892,1764565853283,-500.0,0.00011506,2]
[395245894,1764565853293,-500.0,0.00011506,2]
[395245896,1764565853304,-685.11,0.00011506,2]
[395245898,1764565853314,-793.47,0.00011506,2]
[395245900,1764565853324,-669.9,0.00011506,2]
[395245902,1764565853333,-4333.6317618,0.00011506,2]
[395245904,1764565853346,-10162.4982382,0.00011506,2]
[395245906,1764565853355,-663.35,0.00011506,2]
[395245908,1764565853365,-810.27,0.00011506,2]
[395245910,1764565853375,-500.0,0.00011506,2]
[395245912,1764565853385,-730.88,0.00011506,2]
[395245914,1764565853396,-1391.08,0.00011506,2]
[395245916,1764565853406,-2980.07,0.00011506,2]
[395245921,1764565853434,-500.0,0.00011506,2]
[395245923,1764565853443,-1283.37,0.00011506,2]
[395245924,1764565853452,-815.46,0.00011506,2]
[395245926,1764565853462,-1565.79,0.00011506,2]
[395245929,1764565853472,-500.0,0.00011506,2]
[395245931,1764565853482,-500.0,0.00011506,2]
[395245933,1764565853492,-4536.69,0.00011506,2]
[395245934,1764565853502,-500.0,0.00011506,2]
[395245936,1764565853512,-3165.95,0.00011506,2]
[395245939,1764565853522,-500.0,0.00011506,2]
[395245941,1764565853531,-500.0,0.00011506,2]
[395245942,1764565853541,-500.0,0.00011506,2]
[395245944,1764565853551,-882.49101833,0.00011506,2]
[395245947,1764565853563,-819.24898167,0.00011506,2]
[395245971,1764565853787,-567.36,0.00011506,2]
[395245973,1764565853801,-709.48,0.00011506,2]
[395245975,1764565853811,-500.0,0.00011506,2]
[395245977,1764565853820,-1461.69,0.00011506,2]
[395245979,1764565853830,-208.21854963,0.00011506,2]
[395245981,1764565853840,-2036.24,0.00011506,2]
[395245983,1764565853850,-500.0,0.00011506,2]
[395245985,1764565853859,-500.0,0.00011506,2]
[395245987,1764565853869,-500.0,0.00011506,2]
[395245989,1764565853879,-1664.21,0.00011506,2]
[395245991,1764565853889,-500.0,0.00011506,2]
[395245993,1764565853899,-500.0,0.00011506,2]
[395245995,1764565853909,-1340.23,0.00011506,2]
[395245997,1764565853918,-1193.69,0.00011506,2]
[395245999,1764565853928,-614.24,0.00011506,2]
[395246001,1764565853937,-500.0,0.00011506,2]
[395246003,1764565853947,-500.0,0.00011506,2]
[395246005,1764565853956,-500.0,0.00011506,2]
[395246007,1764565853965,-1137.37,0.00011506,2]
[395246009,1764565853975,-763.11,0.00011506,2]
[395246011,1764565853984,-747.71,0.00011506,2]
[395246013,1764565853994,-1464.92563314,0.00011506,2]
[395246015,1764565854005,-1259.91436686,0.00011506,2]
[395246017,1764565854015,-500.36701122,0.00011506,2]
[395246019,1764565854025,-696.75,0.00011506,2]
[395246021,1764565854034,-500.0,0.00011506,2]
[395246023,1764565854044,-500.0,0.00011506,2]
[395246025,1764565854053,-500.0,0.00011506,2]
[395246027,1764565854063,-1528.4,0.00011506,2]
[395246029,1764565854072,-500.0,0.00011506,2]
[395246031,1764565854081,-620.22,0.00011506,2]
[395246033,1764565854091,-500.0,0.00011506,2]
[395246035,1764565854100,-3320.43,0.00011506,2]
[395246037,1764565854110,-1654.95,0.00011506,2]
[395246039,1764565854120,-2344.08,0.00011506,2]
[395246041,1764565854129,-500.0,0.00011506,2]
[395246043,1764565854139,-500.0,0.00011506,2]
[395246045,1764565854148,-616.43,0.00011506,2]
[395246047,1764565854157,-820.41884016,0.00011506,2]
[395246052,1764565854200,-229.118089,0.00010958,2]
[395246054,1764565854211,-1215.65115984,0.00011506,2]
[395246056,1764565854220,-500.0,0.00011506,2]
[395246058,1764565854230,-3096.99,0.00011506,2]
[395246060,1764565854240,-500.0,0.00011506,2]
[395246062,1764565854249,-1609.07,0.00011506,2]
[395246064,1764565854259,-482.7603233,0.00011506,2]
[395246066,1764565854271,-1330.41,0.00011506,2]
[395246069,1764565854280,-6198.17,0.00011506,2]
[395246071,1764565854290,-500.0,0.00011506,2]
[395246072,1764565854300,-500.0,0.00011506,2]
[395246074,1764565854309,-500.0,0.00011506,2]
[395246076,1764565854319,-2448.13,0.00011506,2]
[395246078,1764565854328,-3682.98,0.00011506,2]
[395246080,1764565854338,-705.79,0.00011506,2]
[395246082,1764565854347,-563.39,0.00011506,2]
[395246084,1764565854357,-930.6,0.00011506,2]
[395246086,1764565854367,-1642.32,0.00011506,2]
[395246088,1764565854377,-1644.65,0.00011506,2]
[395246090,1764565854387,-500.0,0.00011506,2]
[395246092,1764565854397,-500.0,0.00011506,2]
[395246094,1764565854406,-2419.21,0.00011506,2]
[395246096,1764565854417,-566.98,0.00011506,2]
[395246098,1764565854426,-2501.29,0.00011506,2]
[395246100,1764565854436,-764.81,0.00011506,2]
[395246102,1764565854445,-500.0,0.00011506,2]
[395246104,1764565854454,-500.0,0.00011506,2]
[395246106,1764565854463,-924.02,0.00011506,2]
[395246108,1764565854473,-500.0,0.00011506,2]
[395246111,1764565854482,-1256.44252331,0.00011506,2]
[395246173,1764565855444,-500.0,0.00010958,2]
[395246175,1764565855454,-53.83539977,0.00010958,2]
[395246177,1764565855468,-175.28268923,0.00010958,2]
[395246179,1764565855477,-229.118089,0.00010958,2]
[395246181,1764565855486,-500.0,0.00010958,2]
[395246183,1764565855495,-229.118089,0.00010958,2]
[395246185,1764565855504,-229.118089,0.00010958,2]
[395246187,1764565855514,-229.118089,0.00010958,2]
[395246189,1764565855524,-229.118089,0.00010958,2]
[395246191,1764565855533,-500.0,0.00010958,2]
[395246193,1764565855543,-229.118089,0.00010958,2]
[395246195,1764565855552,-229.118089,0.00010958,2]
[395246197,1764565855561,-229.118089,0.00010958,2]
[395246199,1764565855571,-229.118089,0.00010958,2]
[395246201,1764565855580,-229.118089,0.00010958,2]
[395246203,1764565855590,-229.118089,0.00010958,2]
[395246205,1764565855600,-229.118089,0.00010958,2]
[395246207,1764565855611,-500.0,0.00010958,2]
[395246209,1764565855621,-229.118089,0.00010958,2]
[395246211,1764565855630,-229.118085,0.00010958,2]
[395246213,1764565855640,-500.77702183,0.00011232,2]
[395246215,1764565855649,-500.0,0.00011232,2]
[395246217,1764565855659,-500.0,0.00011232,2]
[395246219,1764565855668,-2211.54747669,0.00011506,2]
[395246221,1764565855678,-1318.08,0.00011506,2]
[395246223,1764565855688,-6672.96,0.00011506,2]
[395246225,1764565855697,-500.0,0.00011506,2]
[395246227,1764565855706,-108.00481342,0.00011506,2]
[395246229,1764565855718,-445.55518658,0.00011506,2]
[395246231,1764565855727,-500.0,0.00011506,2]
[395246233,1764565855737,-236.62866578,0.00011506,2]
[395246235,1764565855747,-500.0,0.00011506,2]
[395246237,1764565855757,-5965.75,0.00011506,2]
[395246239,1764565855766,-291.6434386,0.00011506,2]
[395246241,1764565855775,-707.38,0.00011506,2]
[395246242,1764565855785,-500.0,0.00011506,2]
[395246243,1764565855794,-500.0,0.00011506,2]
[395246244,1764565855804,-500.0,0.00011506,2]
[395246245,1764565855814,-1115.12,0.00011506,2]
[395246246,1764565855823,-500.0,0.00011506,2]
[395246247,1764565855833,-661.2,0.00011506,2]
[395246248,1764565855842,-500.0,0.00011506,2]
[395246249,1764565855851,-500.0,0.00011506,2]
[395246250,1764565855861,-642.02,0.00011506,2]
[395246251,1764565855870,-722.06,0.00011506,2]
[395246252,1764565855880,-500.0,0.00011506,2]
[395246253,1764565855890,-539.94,0.00011506,2]
[395246254,1764565855899,-1496.63,0.00011506,2]
[395246255,1764565855909,-500.0,0.00011506,2]
[395246256,1764565855918,-500.0,0.00011506,2]
[395246257,1764565855927,-500.0,0.00011506,2]
[395246258,1764565855937,-2248.43,0.00011506,2]
[395246259,1764565855946,-661.71,0.00011506,2]
[395246260,1764565855956,-4005.93270904,0.00011506,2]
[395246261,1764565856303,-10507.00729096,0.00011506,2]
[395246262,1764565856313,-3216.87,0.00011506,2]
[395246263,1764565856323,-5932.38,0.00011506,2]
[395246264,1764565856332,-4570.98,0.00011506,2]
[395246265,1764565856341,-500.0,0.00011506,2]
[395246266,1764565856350,-500.0,0.00011506,2]
[395246267,1764565856359,-626.14,0.00011506,2]
[395246268,1764565856369,-500.0,0.00011506,2]
[395246269,1764565856378,-500.0,0.00011506,2]
[395246270,1764565856387,-2682.85,0.00011506,2]
[395246271,1764565856395,-1159.2,0.00011506,2]
[395246272,1764565856405,-891.56,0.00011506,2]
[395246273,1764565856414,-655.1,0.00011506,2]
[395246274,1764565856423,-618.43,0.00011506,2]
[395246275,1764565856432,-1516.75,0.00011506,2]
[395246276,1764565856441,-543.83,0.00011506,2]
[395246277,1764565856450,-639.94,0.00011506,2]
[395246278,1764565856459,-500.0,0.00011506,2]
[395246279,1764565856468,-500.0,0.00011506,2]
[395246280,1764565856476,-591.87,0.00011506,2]
[395246281,1764565856486,-500.0,0.00011506,2]
[395246282,1764565856495,-500.0,0.00011506,2]
[395246283,1764565856504,-2617.07,0.00011506,2]
[395246284,1764565856513,-500.0,0.00011506,2]
[395246285,1764565856522,-500.0,0.00011506,2]
[395246286,1764565856532,-1000.0,0.00011507,2]
[395246287,1764565856541,-1666.92282691,0.00011584,2]
[395246305,1764565857590,-500.0,0.00010959,2]
[395246306,1764565857599,-443.06068975,0.00011584,2]
[395246307,1764565857608,-929.66831025,0.00011643,2]
[395246310,1764565987342,-9747.06737175,0.00010652,2]
[395246311,1764565987708,-10000.01,0.00010652,2]
[395246312,1764565987870,-10000.01,0.00010652,2]
[395246313,1764565988062,-10000.01,0.00010652,2]
[395246314,1764565988243,-10000.01,0.00010652,2]
[395246315,1764565988461,-10000.01,0.00010652,2]
[395246316,1764565988682,-10000.01,0.00010652,2]
[395246317,1764565988879,-10000.01,0.00010652,2]
[395246318,1764565995190,-10000.01,0.00010652,2]
[395246319,1764566027598,-10000.01,0.00010652,2]
[395246320,1764566027923,-10000.01,0.00010652,2]
[395246321,1764566037400,-1614.84865452,0.00010545,2]
[395246322,1764566037441,-6770.31269096,0.00010652,2]
[395246323,1764566037557,-10000.01,0.00010652,2]
[395246324,1764566047780,-300.0,0.00010651,2]
[395246325,1764566047821,-9400.01,0.00010652,2]
[395246326,1764566061032,-10000.01,0.00010652,2]
[395246327,1764566061473,-10000.01,0.00010652,2]
[395246328,1764566061989,-10000.01,0.00010652,2]
[395246329,1764566062010,-10000.01,0.00010652,2]
[395246330,1764566070294,-10000.01,0.00010652,2]
[395246331,1764566103093,-300.0,0.0001065,2]
[395246332,1764566103126,-422.52154565,0.00010651,2]
[395246333,1764566103158,-205.2055067,0.00010651,2]
[395246334,1764566103191,-500.0,0.00010651,2]
[395246335,1764566103222,-264.92762054,0.00010651,2]
[395246336,1764566103254,-500.0,0.00010651,2]
[395246337,1764566103289,-500.0,0.00010651,2]
[395246338,1764566103320,-365.83097936,0.00010651,2]
[395246339,1764566103503,-3883.0386955,0.00010652,2]
[395246340,1764566103546,-10000.01,0.00010652,2]
[395246341,1764566103578,-10000.01,0.00010652,2]
[395246342,1764566103661,-10000.01,0.00010652,2]
[395246343,1764566130965,-1012.0,0.00010544,2]
[395246344,1764566130994,-1012.0,0.00010651,2]
[395246345,1764566131069,-5952.01,0.00010652,2]
[395246346,1764566131173,-10000.01,0.00010652,2]
[395246347,1764566131399,-10000.01,0.00010652,2]
[395246348,1764566131523,-10000.01,0.00010652,2]
[395246349,1764566131741,-176.75690418,0.00010597,2]
[395246350,1764566131796,-9646.49619164,0.00010652,2]
[395246351,1764566131938,-10000.01,0.00010652,2]
[395246352,1764566132112,-10000.01,0.00010652,2]
[395246353,1764566132303,-10000.01,0.00010652,2]
[395246354,1764566132418,-10000.01,0.00010652,2]
[395246355,1764566166870,-300.0,0.00010544,2]
[395246356,1764566166917,-9400.01,0.00010545,2]
[395246357,1764566167055,-3703.4441802,0.00010545,2]
[395246358,1764566167089,-2593.1216396,0.00010652,2]
[395246359,1764566167272,-10000.01,0.00010652,2]
[395246360,1764566167717,-10000.01,0.00010652,2]
[395246361,1764566168060,-10000.01,0.00010652,2]
[395246362,1764566168238,-10000.01,0.00010652,2]
[395246363,1764566168894,-300.0,0.00010439,2]
[395246364,1764566168940,-9400.01,0.00010652,2]
[395246365,1764566169175,-10000.01,0.00010652,2]
[395246366,1764566169881,-10000.01,0.00010652,2]
[395246367,1764566212857,-4718.65746871,0.0001044,2]
[395246368,1764566212904,-562.69506258,0.00010545,2]
[395246369,1764566213219,-4155.96240613,0.00010545,2]
[395246370,1764566213259,-1688.08518774,0.00010652,2]
[395246371,1764566221278,-10000.01,0.00010652,2]
[395246372,1764566221482,-10000.01,0.00010652,2]
[395246373,1764566221641,-10000.01,0.00010652,2]
[395246374,1764566221811,-10000.01,0.00010652,2]
[395246375,1764566253801,-300.0,0.00010544,2]
[395246376,1764566253831,-300.0,0.00010651,2]
[395246377,1764566253879,-8800.01,0.00010652,2]
[395246378,1764566267790,-10000.01,0.00010545,2]
[395246379,1764566295012,1107.4,0.0002142,120]
[395246380,1764566448775,5000.0,0.0001401,9]